bitfinex-derivatives/quotes_BNBF0:USTF0_20241230
["timestamp","ask_amount","ask_price","bid_price","bid_amount"]
[1735597057757,0.26217593,702.31,699.27,0.28601255]
[1735597058056,0.26217593,702.3,699.27,0.28601255]
[1735597058357,0.26217593,702.29,699.27,0.28601255]
[1735597058557,0.26217593,702.28,699.27,0.28601255]
[1735597058854,0.26217593,702.31,699.27,0.28601255]
[1735597059053,0.26217593,702.3,699.27,0.28601255]
[1735597059560,0.26217593,702.29,699.27,0.28601255]
[1735597059757,0.26217593,702.28,699.27,0.28601255]
[1735597059959,0.26217593,702.27,699.27,0.28601255]
[1735597060354,0.26217593,702.31,699.27,0.28601255]
[1735597060554,0.26217593,702.26,699.27,0.28601255]
[1735597060754,0.26217593,702.3,699.27,0.28601255]
[1735597060957,0.26217593,702.25,699.27,0.28601255]
[1735597061152,0.26217593,702.24,699.27,0.28601255]
[1735597061357,0.26217593,702.23,699.27,0.28601255]
[1735597061558,0.26217593,702.31,699.27,0.28601255]
[1735597061760,1.49017789,702.22,699.27,0.28601255]
[1735597062056,0.26217593,702.21,699.27,0.28601255]
[1735597062355,1.49015662,702.21,699.27,0.28601255]
[1735597062754,0.26217593,702.2,699.27,0.28601255]
[1735597062960,0.26217593,702.2,700.8,1.06196932]
[1735597063457,0.26217593,702.2,700.81,0.28538405]
[1735597066862,0.26223132,702.19,700.81,0.28538405]
[1735597067163,0.26223132,702.18,700.81,0.28538405]
[1735597067363,0.26223132,702.17,700.81,0.28538405]
[1735597067564,1.49015662,702.21,700.81,0.28538405]
[1735597067565,0.26223132,702.16,700.81,0.28538405]
[1735597067862,0.26223132,702.15,700.81,0.28538405]
[1735597068163,0.26223132,702.14,700.81,0.28538405]
[1735597068364,0.26223132,702.13,700.81,0.28538405]
[1735597068558,0.26223132,702.12,700.81,0.28538405]
[1735597068764,0.26223132,702.11,700.81,0.28538405]
[1735597069063,1.49015662,702.21,700.81,0.28538405]
[1735597069260,0.26223497,702.2,700.81,0.28538405]
[1735597069464,0.26224244,702.2,700.81,0.28538405]
[1735597069865,0.26224244,702.2,700.83,1.06196932]
[1735597070061,0.26224312,702.19,700.83,1.06196932]
[1735597070260,0.26224312,702.18,700.83,1.06196932]
[1735597070461,0.26224312,702.17,700.83,1.06196932]
[1735597070661,0.26224312,702.16,700.83,1.06196932]
[1735597070866,0.26224312,702.15,700.92,1.06196932]
[1735597071066,0.26224312,702.14,700.92,1.06196932]
[1735597071267,0.26224312,702.13,700.92,1.06196932]
[1735597071467,0.26224312,702.12,700.92,1.06196932]
[1735597071668,0.26224312,702.11,700.92,1.06196932]
[1735597071868,1.49015662,702.21,700.92,1.06196932]
[1735597072064,1.49015662,702.21,700.93,0.28533519]
[1735597072769,0.26218377,702.2,700.93,0.28533519]
[1735597072970,1.49015662,702.21,700.93,0.28533519]
[1735597073469,0.26218258,702.2,701.04,1.06196932]
[1735597073668,1.49015662,702.21,701.04,1.06196932]
[1735597074270,0.26217919,702.2,701.04,1.06196932]
[1735597074571,0.26220846,702.19,701.04,1.06196932]
[1735597074864,1.49015662,702.21,701.08,1.06196932]
[1735597074865,0.26220846,702.18,701.08,1.06196932]
[1735597075070,0.26220846,702.17,701.08,1.06196932]
[1735597075267,0.26220846,702.16,701.08,1.06196932]
[1735597075471,0.26220846,702.15,701.08,1.06196932]
[1735597075669,0.26220846,702.14,701.08,1.06196932]
[1735597075869,0.26220846,702.13,701.03,1.06196932]
[1735597076066,0.26220846,702.12,701.03,1.06196932]
[1735597076271,0.26220846,702.11,701.03,1.06196932]
[1735597076969,0.26220846,702.11,701.08,1.06196932]
[1735597077174,0.26221604,702.1,701.08,1.06196932]
[1735597077374,0.26221604,702.09,701.08,1.06196932]
[1735597077669,0.26221604,702.08,701.08,1.06196932]
[1735597077875,0.26221604,702.07,701.08,1.06196932]
[1735597078070,0.26221604,702.06,701.04,1.06196932]
[1735597078273,0.26221604,702.05,701.04,1.06196932]
[1735597078474,0.26221604,702.04,701.04,1.06196932]
[1735597078774,1.48822358,702.12,701.04,1.06196932]
[1735597079072,0.26221632,702.11,701.05,1.06196932]
[1735597079974,1.48822358,702.12,701.05,1.06196932]
[1735597080170,1.48822358,702.12,701.12,1.06196932]
[1735597080371,1.05194106,702.2,701.12,1.06196932]
[1735597081776,1.4877888,702.35,701.38,1.06196932]
[1735597083174,1.4877888,702.35,701.37,1.06196932]
[1735597083371,0.26211245,702.34,701.37,1.06196932]
[1735597084075,1.4877888,702.35,701.37,1.06196932]
[1735597084281,1.4877888,702.35,701.28,1.06196932]
[1735597084674,0.52422685,702.34,701.28,1.06196932]
[1735597085374,0.52422685,702.34,701.1,1.06196932]
[1735597085375,0.26211113,702.33,701.26,1.06196932]
[1735597085574,0.52422685,702.34,701.26,1.06196932]
[1735597085777,0.26211078,702.33,701.26,1.06196932]
[1735597086072,0.52422685,702.34,701.26,1.06196932]
[1735597086275,0.52422685,702.34,701.25,1.06196932]
[1735597086675,1.4877888,702.35,701.25,1.06196932]
[1735597087371,1.4877888,702.35,701.18,1.06196932]
[1735597088080,1.4877888,702.35,701.13,1.06196932]
[1735597088279,1.4877888,702.35,701.14,0.28524973]
[1735597089384,1.4877888,702.35,701.14,1.34721905]
[1735597089681,0.28466509,702.58,701.14,1.34721905]
[1735597089883,1.4876245,702.43,701.14,1.34721905]
[1735597090078,0.28466509,702.58,701.14,1.34721905]
[1735597090283,1.77216242,702.58,701.14,1.34721905]
[1735597090582,1.77216242,702.58,701.22,1.06196932]
[1735597091478,1.77216242,702.58,701.38,1.06196932]
[1735597092779,1.77216242,702.58,701.34,1.06196932]
[1735597093786,1.77216242,702.58,701.29,1.06196932]
[1735597095185,1.77216242,702.58,701.21,1.06196932]
[1735597095987,1.77216242,702.58,701.19,1.06196932]
[1735597097084,1.77216242,702.58,701.21,0.28522126]
[1735597098785,0.26203467,702.57,701.21,0.28522126]
[1735597099187,0.26204735,702.56,701.21,0.28522126]
[1735597099386,0.26204735,702.57,701.21,0.28522126]
[1735597099590,1.77216242,702.58,701.21,0.28522126]
[1735597104900,0.26205802,702.57,701.21,0.28522126]
[1735597107500,1.77216242,702.58,701.21,0.28522126]
[1735597107699,0.26210297,702.57,701.21,0.28522126]
[1735597112003,1.77216242,702.58,701.21,0.28522126]
[1735597112807,0.26206245,702.57,701.21,0.28522126]
[1735597113201,0.26206245,702.57,701.27,1.06196932]
[1735597113507,1.77216242,702.58,701.27,1.06196932]
[1735597114501,1.77216242,702.58,701.21,0.28522126]
[1735597115909,1.77216242,702.58,701.27,1.06196932]
[1735597117311,1.77216242,702.58,701.21,0.28522126]
[1735597120413,0.26210979,702.57,701.21,0.28522126]
[1735597121808,1.05194106,702.56,701.21,0.28522126]
[1735597122113,0.26210979,702.55,701.21,0.28522126]
[1735597122504,1.31409161,702.54,701.21,0.28522126]
[1735597122710,0.26215055,702.53,701.21,0.28522126]
[1735597123712,1.05194106,702.45,701.21,0.28522126]
[1735597123914,0.26215055,702.44,701.21,0.28522126]
[1735597124310,1.48787892,702.43,701.21,0.28522126]
[1735597124510,0.26215055,702.42,701.21,0.28522126]
[1735597130217,1.48787892,702.43,701.21,0.28522126]
[1735597130412,0.26219622,702.41,701.21,0.28522126]
[1735597130619,0.26219622,702.42,701.21,0.28522126]
[1735597130814,1.48787892,702.43,701.21,0.28522126]
[1735597131118,0.26219829,702.42,701.21,0.28522126]
[1735597132015,0.28473398,702.41,701.21,0.28522126]
[1735597132317,0.26219829,702.4,701.21,0.28522126]
[1735597133619,0.28474209,702.39,701.21,0.28522126]
[1735597133812,0.26219829,702.38,701.21,0.28522126]
[1735597134317,0.54694443,702.38,701.21,0.28522126]
[1735597134516,0.26219829,702.37,701.21,0.28522126]
[1735597135719,0.26219829,702.37,700.96,1.06196932]
[1735597136722,0.26219829,702.37,700.77,1.06196932]
[1735597137222,0.26219829,702.37,700.78,0.28539627]
[1735597137618,0.26219829,702.37,700.81,1.06196932]
[1735597137920,0.26220004,702.36,700.82,0.28537998]
[1735597138123,0.26220004,702.37,700.82,0.28537998]
[1735597138324,0.26220004,702.36,700.82,0.28537998]
[1735597138518,0.26220004,702.35,700.82,0.28537998]
[1735597138726,0.26220202,702.35,700.82,0.28537998]
[1735597139919,0.26220202,702.35,700.87,1.06196932]
[1735597140628,1.48818645,702.36,700.88,0.28535555]
[1735597140828,0.28476236,702.34,700.88,0.28535555]
[1735597141029,0.2622229,702.33,700.88,0.28535555]
[1735597142327,0.28476236,702.34,700.88,0.28535555]
[1735597142524,0.26223682,702.33,700.88,0.28535555]
[1735597143425,0.26223682,702.32,700.88,0.28535555]
[1735597143632,0.26223682,702.31,700.88,0.28535555]
[1735597143828,0.26223682,702.3,700.88,0.28535555]
[1735597144033,1.05194106,702.28,700.88,0.28535555]
[1735597144235,0.26223682,702.27,700.88,0.28535555]
[1735597144833,0.26229322,702.26,700.88,0.28535555]
[1735597145034,0.26228917,702.25,700.88,0.28535555]
[1735597145328,0.26228917,702.24,700.88,0.28535555]
[1735597145533,0.26228917,702.23,700.88,0.28535555]
[1735597145731,0.26228619,702.31,700.88,0.28535555]
[1735597145927,1.05194106,702.32,700.88,0.28535555]
[1735597145928,0.26228619,702.3,700.88,0.28535555]
[1735597146233,0.26228619,702.29,700.88,0.28535555]
[1735597146434,0.26228619,702.28,700.88,0.28535555]
[1735597146631,0.28476236,702.34,700.88,0.28535555]
[1735597146632,1.33670342,702.34,700.88,0.28535555]
[1735597147827,0.26227649,702.33,700.88,0.28535555]
[1735597148434,0.52455243,702.33,700.88,0.28535555]
[1735597148635,0.26227594,702.32,700.88,0.28535555]
[1735597150536,0.26225615,702.31,700.88,0.28535555]
[1735597150738,0.26225615,702.3,700.88,0.28535555]
[1735597150936,0.26225615,702.29,700.88,0.28535555]
[1735597151131,0.26225615,702.28,700.88,0.28535555]
[1735597151335,0.26225615,702.27,700.88,0.28535555]
[1735597151531,0.26225615,702.26,700.88,0.28535555]
[1735597153031,0.26222097,702.25,700.88,0.28535555]
[1735597153235,0.26222097,702.24,700.88,0.28535555]
[1735597153436,0.26222097,702.23,700.88,0.28535555]
[1735597153634,0.26222097,702.22,700.88,0.28535555]
[1735597153835,0.26222097,702.21,700.88,0.28535555]
[1735597154035,0.26222097,702.2,700.88,0.28535555]
[1735597154235,0.26222097,702.19,700.88,0.28535555]
[1735597154432,0.26222097,702.18,700.88,0.28535555]
[1735597154633,0.26222097,702.17,700.88,0.28535555]
[1735597154838,0.26222097,702.16,700.88,0.28535555]
[1735597155037,0.26222097,702.15,700.88,0.28535555]
[1735597155336,0.26222097,702.14,700.89,1.06196932]
[1735597155539,1.48848881,702.27,700.89,1.06196932]
[1735597155540,1.48848881,702.27,700.9,0.28534741]
[1735597155837,0.26221293,702.26,700.9,0.28534741]
[1735597156538,0.26221293,702.26,700.94,1.06196932]
[1735597156735,0.28479886,702.25,700.94,1.06196932]
[1735597156936,0.26221293,702.24,700.94,1.06196932]
[1735597157637,0.26221293,702.24,700.9,0.28534741]
[1735597158340,0.26224345,702.23,700.9,0.28534741]
[1735597158637,0.26224345,702.22,700.9,0.28534741]
[1735597158834,0.26224345,702.21,700.9,0.28534741]
[1735597159039,0.26224345,702.2,700.9,0.28534741]
[1735597159235,0.26224345,702.19,700.9,0.28534741]
[1735597159436,0.26224345,702.18,700.9,0.28534741]
[1735597159634,0.26224345,702.17,700.9,0.28534741]
[1735597159835,0.26224345,702.16,700.9,0.28534741]
[1735597160142,0.28479886,702.25,700.91,1.06196932]
[1735597160143,0.26224345,702.15,700.91,1.06196932]
[1735597160340,0.26224345,702.14,700.91,1.06196932]
[1735597160543,0.26224345,702.13,700.91,1.06196932]
[1735597160742,0.26224345,702.12,700.91,1.06196932]
[1735597160942,0.28479886,702.25,700.91,1.06196932]
[1735597161143,0.26222536,702.24,700.92,1.06196932]
[1735597161342,0.54702827,702.24,700.92,1.06196932]
[1735597161542,0.26222536,702.23,700.92,1.06196932]
[1735597162445,0.26222536,702.23,700.97,1.06196932]
[1735597163346,0.26222536,702.23,701.0,1.06196932]
[1735597163546,0.28480291,702.24,701.0,1.06196932]
[1735597163746,0.26220752,702.23,701.0,1.06196932]
[1735597164643,0.26220752,702.23,701.09,1.06196932]
[1735597165045,0.28480291,702.24,701.09,1.06196932]
[1735597165250,0.2621843,702.23,701.09,1.06196932]
[1735597165744,0.2621843,702.23,701.16,1.06196932]
[1735597166149,0.28480291,702.24,701.16,1.06196932]
[1735597166345,0.26218981,702.23,701.16,1.06196932]
[1735597166646,0.26218981,702.23,701.13,1.06196932]
[1735597167951,0.26218981,702.23,701.06,1.06196932]
[1735597169253,0.26218981,702.23,701.07,1.06196932]
[1735597169453,0.26220718,702.22,701.07,1.06196932]
[1735597169649,0.26220718,702.21,701.07,1.06196932]
[1735597169850,0.26220718,702.2,701.07,1.06196932]
[1735597170058,0.26220718,702.19,701.07,1.06196932]
[1735597170255,0.26220718,702.18,701.07,1.06196932]
[1735597170457,1.48827131,702.18,701.08,1.06196932]
[1735597170957,0.26225791,702.17,701.08,1.06196932]
[1735597171257,1.48827131,702.18,701.08,1.06196932]
[1735597171852,1.48827131,702.18,700.9,0.28534741]
[1735597172958,1.48827131,702.18,700.99,1.06196932]
[1735597174054,1.48827131,702.18,701.19,1.06196932]
[1735597175359,1.48827131,702.18,701.18,1.06196932]
[1735597176560,1.48827131,702.18,700.91,0.70881039]
[1735597176561,1.48827131,702.18,701.16,1.06196932]
[1735597177857,1.48827131,702.18,700.9,0.28534741]
[1735597178360,0.26225403,702.17,700.9,0.28534741]
[1735597178558,0.26225441,702.16,700.9,0.28534741]
[1735597178754,0.2622822,702.15,700.9,0.28534741]
[1735597178958,0.2622822,702.14,700.9,0.28534741]
[1735597179159,0.2622822,702.13,700.9,0.28534741]
[1735597179458,0.2622822,702.12,700.9,0.28534741]
[1735597179659,0.2622822,702.11,700.9,0.28534741]
[1735597179857,0.2622822,702.1,700.9,0.28534741]
[1735597180059,0.2622822,702.09,700.9,0.28534741]
[1735597180258,0.2622822,702.08,700.9,0.28534741]
[1735597180456,0.28480291,702.24,700.9,0.28534741]
[1735597180457,0.2622822,702.07,700.9,0.28534741]
[1735597180657,0.2622822,702.06,700.9,0.28534741]
[1735597180853,0.2622822,702.05,700.9,0.28534741]
[1735597181157,0.2622822,702.04,700.9,0.28534741]
[1735597181354,1.4885737,702.07,700.9,0.28534741]
[1735597181858,0.26229758,702.06,700.9,0.28534741]
[1735597184059,1.4885737,702.07,700.9,0.28534741]
[1735597184260,0.26233268,702.06,700.9,0.28534741]
[1735597186463,1.4885737,702.07,700.9,0.28534741]
[1735597186658,0.26231473,702.06,700.9,0.28534741]
[1735597186857,0.26231752,702.05,700.9,0.28534741]
[1735597187060,1.4885737,702.07,700.9,0.28534741]
[1735597187262,0.26231867,702.06,700.9,0.28534741]
[1735597187662,0.28487999,702.05,700.9,0.28534741]
[1735597187857,0.26231867,702.04,700.9,0.28534741]
[1735597188469,0.28488811,702.03,700.9,0.28534741]
[1735597188665,0.26231867,702.02,700.9,0.28534741]
[1735597189662,0.26231867,702.02,700.47,1.06196932]
[1735597189862,0.26231867,702.02,700.48,0.2855185]
[1735597191869,0.28488811,702.03,700.48,0.2855185]
[1735597192068,0.26235245,702.02,700.48,0.2855185]
[1735597193470,0.26235245,702.02,700.48,1.34748782]
[1735597194666,0.28488811,702.03,700.48,1.34748782]
[1735597194667,0.2623278,702.01,700.48,1.34748782]
[1735597194862,0.2623278,702.0,700.48,0.2855185]
[1735597195065,0.2623278,701.99,700.48,0.2855185]
[1735597195268,0.2623278,701.98,700.48,0.2855185]
[1735597195470,0.2623278,701.97,700.48,0.2855185]
[1735597196069,0.2623278,701.97,700.51,1.06196932]
[1735597197071,1.48882844,701.98,700.51,1.06196932]
[1735597197372,0.26229931,701.97,700.52,0.28550219]
[1735597197667,1.48882844,701.98,700.52,0.28550219]
[1735597197668,1.48882844,701.98,700.52,1.34747151]
[1735597198671,1.48882844,701.98,700.69,1.06196932]
[1735597199374,1.48882844,701.98,700.7,0.28542885]
[1735597199773,1.48882844,701.98,700.7,1.34739817]
[1735597200971,1.48882844,701.98,700.7,0.28542885]
[1735597201373,0.28488811,702.03,700.7,0.28542885]
[1735597201575,1.48867983,701.97,700.7,0.28542885]
[1735597206279,0.26231672,701.96,700.7,0.28542885]
[1735597206680,1.48867983,701.97,700.7,0.28542885]
[1735597206880,0.26231318,701.96,700.7,0.28542885]
[1735597207376,1.48867983,701.97,700.7,0.28542885]
[1735597207581,0.26231503,701.96,700.7,0.28542885]
[1735597209482,0.26229503,701.95,700.7,0.28542885]
[1735597209683,0.26229503,701.94,700.7,0.28542885]
[1735597209881,0.26229503,701.93,700.74,1.06196932]
[1735597210082,0.26229503,701.92,700.74,1.06196932]
[1735597210276,0.26229503,701.91,700.74,1.06196932]
[1735597210480,0.26229503,701.96,700.74,1.06196932]
[1735597210682,0.26229503,701.95,700.74,1.06196932]
[1735597210878,1.48867983,701.97,700.7,0.28542885]
[1735597210879,0.26229503,701.94,700.77,1.06196932]
[1735597211081,0.26229503,701.93,700.77,1.06196932]
[1735597211276,0.26229503,701.92,700.77,1.06196932]
[1735597211481,0.26229503,701.91,700.77,1.06196932]
[1735597211675,0.26229503,701.9,700.77,1.06196932]
[1735597211875,1.48867983,701.97,700.87,1.06196932]
[1735597212082,1.05194106,701.99,700.87,1.06196932]
[1735597212282,1.48875413,701.96,700.87,1.06196932]
[1735597212981,1.48875413,701.96,700.7,0.28542885]
[1735597212982,0.26233585,701.95,700.7,0.28542885]
[1735597213184,1.48875413,701.96,700.7,0.28542885]
[1735597213375,0.26233774,701.95,700.7,0.28542885]
[1735597213881,1.48875413,701.96,700.7,0.28542885]
[1735597214281,0.26233983,701.95,700.7,0.28542885]
[1735597214585,1.48875413,701.96,700.7,0.28542885]
[1735597217579,0.26233565,701.95,700.7,0.28542885]
[1735597219281,1.31427671,701.95,700.7,0.28542885]
[1735597219479,0.26233565,701.94,700.7,0.28542885]
[1735597219883,0.2624079,701.93,700.7,0.28542885]
[1735597220185,0.2624079,701.92,700.62,1.06196932]
[1735597220386,0.2624079,701.91,700.62,1.06196932]
[1735597220684,0.2624079,701.9,700.62,1.06196932]
[1735597220881,1.05194106,701.86,700.5,1.06196932]
[1735597221080,0.54736907,701.85,700.5,1.06196932]
[1735597221287,0.54737313,701.84,700.5,1.06196932]
[1735597221485,0.2624079,701.83,700.5,1.06196932]
[1735597222083,0.2624079,701.83,699.95,1.27436318]
[1735597222084,1.05194106,701.72,700.43,1.06196932]
[1735597222383,0.26244474,701.71,700.43,1.06196932]
[1735597222585,1.75189978,701.71,700.43,1.06196932]
[1735597222784,0.26244474,701.7,700.43,1.06196932]
[1735597223387,0.26244474,701.7,699.86,2.16818736]
[1735597223388,0.26244474,701.7,700.32,1.06196932]
[1735597223587,0.28502615,701.69,700.32,1.06196932]
[1735597223788,0.26244474,701.68,700.32,1.06196932]
[1735597224390,0.26244474,701.68,700.1,1.06196932]
[1735597224391,0.26244474,701.68,700.22,1.06196932]
[1735597224986,0.28503427,701.67,700.22,1.06196932]
[1735597225185,0.26248367,701.66,700.22,1.06196932]
[1735597225388,0.26248367,701.66,700.15,1.06196932]
[1735597225585,0.2850424,701.65,700.16,0.28564899]
[1735597225785,0.26248367,701.64,700.16,0.28564899]
[1735597226190,0.28505052,701.63,700.16,0.28564899]
[1735597226392,0.26248367,701.62,700.16,0.28564899]
[1735597226690,0.28505865,701.61,700.16,0.28564899]
[1735597226892,0.26248367,701.6,700.16,0.28564899]
[1735597227591,0.28505865,701.61,700.16,0.28564899]
[1735597227891,0.26249114,701.6,700.16,0.28564899]
[1735597229692,0.28506677,701.59,700.16,0.28564899]
[1735597229893,0.26249114,701.58,700.16,0.28564899]
[1735597230087,0.2850749,701.57,700.16,0.28564899]
[1735597230286,0.26249114,701.56,700.16,0.28564899]
[1735597230793,0.2850749,701.57,700.16,0.28564899]
[1735597230990,0.26254329,701.56,700.16,0.28564899]
[1735597231292,0.54762632,701.55,700.16,0.28564899]
[1735597231492,0.26254329,701.54,700.16,0.28564899]
[1735597232893,1.75268396,701.53,700.16,0.28564899]
[1735597233094,0.26253798,701.52,700.16,0.28564899]
[1735597235490,0.26253798,701.51,700.16,0.28564899]
[1735597235696,0.26253798,701.5,700.16,0.28564899]
[1735597235897,0.54764539,701.49,700.16,0.28564899]
[1735597236093,0.54764945,701.48,700.16,0.28564899]
[1735597236299,0.54765352,701.47,700.16,0.28564899]
[1735597236499,0.26253798,701.46,700.16,0.28564899]
[1735597237200,0.26253798,701.46,699.38,1.06196932]
[1735597237400,0.26253798,701.46,699.4,0.28595939]
[1735597237899,0.28511554,701.47,699.4,0.28595939]
[1735597238100,0.26264257,701.46,699.4,0.28595939]
[1735597238700,0.26266673,701.45,699.4,0.28595939]
[1735597238902,0.26266673,701.46,699.4,0.28595939]
[1735597239101,0.26266673,701.45,699.4,0.28595939]
[1735597239294,0.26266673,701.44,699.4,0.28595939]
[1735597239498,0.26266673,701.43,699.4,0.28595939]
[1735597239695,0.26266673,701.42,699.4,0.28595939]
[1735597239900,0.26266673,701.41,699.4,0.28595939]
[1735597240100,0.26266673,701.4,699.4,0.28595939]
[1735597240299,0.28511554,701.47,699.4,0.28595939]
[1735597240300,0.26266673,701.39,699.4,0.28595939]
[1735597240501,0.26266673,701.38,699.4,0.28595939]
[1735597240705,0.26266673,701.37,699.4,0.28595939]
[1735597240903,0.26266673,701.36,699.4,0.28595939]
[1735597241102,0.26266673,701.35,699.4,0.28595939]
[1735597241398,0.28511554,701.47,699.4,0.28595939]
[1735597241399,0.26266673,701.34,699.4,0.28595939]
[1735597241703,0.26266673,701.33,699.4,0.28595939]
[1735597241901,0.26266673,701.32,699.4,0.28595939]
[1735597242198,0.26266673,701.31,699.4,0.28595939]
[1735597242401,0.26266673,701.3,699.4,0.28595939]
[1735597242603,0.26266673,701.29,699.4,0.28595939]
[1735597242900,0.28511554,701.47,699.4,0.28595939]
[1735597242901,0.26266673,701.28,699.4,0.28595939]
[1735597243096,0.26266673,701.27,699.4,0.28595939]
[1735597243302,0.26266673,701.26,699.4,0.28595939]
[1735597243501,0.26266673,701.25,699.4,0.28595939]
[1735597243703,0.26266673,701.24,699.4,0.28595939]
[1735597243902,0.26266673,701.23,699.4,0.28595939]
[1735597244097,0.26266673,701.22,699.4,0.28595939]
[1735597244296,1.49106113,701.28,699.4,0.28595939]
[1735597244297,0.26266673,701.21,699.4,0.28595939]
[1735597244497,0.26266673,701.2,699.4,0.28595939]
[1735597244701,0.26266673,701.19,699.4,0.28595939]
[1735597244902,0.26266673,701.18,699.4,0.28595939]
[1735597245103,0.26266673,701.17,699.4,0.28595939]
[1735597245304,0.26266673,701.16,699.4,0.28595939]
[1735597245505,0.26266673,701.15,699.4,0.28595939]
[1735597245697,0.26270515,701.14,699.4,0.28595939]
[1735597245903,0.26270515,701.13,699.4,0.28595939]
[1735597246104,0.26270515,701.12,699.4,0.28595939]
[1735597246303,0.26270515,701.11,699.4,0.28595939]
[1735597246501,0.26270515,701.1,699.4,0.28595939]
[1735597246702,0.26270515,701.27,699.4,0.28595939]
[1735597246901,0.26270515,701.26,699.4,0.28595939]
[1735597247107,0.26270515,701.25,699.4,0.28595939]
[1735597247406,0.26270515,701.24,699.4,0.28595939]
[1735597247704,1.49106113,701.28,699.4,0.28595939]
[1735597247705,0.54791827,701.23,699.4,0.28595939]
[1735597247904,0.26270515,701.22,699.4,0.28595939]
[1735597248105,0.54792641,701.21,699.4,0.28595939]
[1735597248306,0.28522532,701.2,699.4,0.28595939]
[1735597248508,0.26271053,701.19,699.4,0.28595939]
[1735597248807,0.26271053,701.18,699.4,0.28595939]
[1735597249008,0.26271053,701.17,699.4,0.28595939]
[1735597249206,0.26271053,701.16,699.4,0.28595939]
[1735597249409,0.26271053,701.15,699.4,0.28595939]
[1735597249605,0.26271053,701.14,699.4,0.28595939]
[1735597249800,0.26271053,701.13,699.4,0.28595939]
[1735597250004,0.26271053,701.12,699.4,0.28595939]
[1735597250399,0.26271053,701.11,699.4,0.28595939]
[1735597250604,0.26271053,701.1,699.4,0.28595939]
[1735597250808,0.26271053,701.12,699.4,0.28595939]
[1735597251007,0.26271053,701.11,699.4,0.28595939]
[1735597251208,0.26271053,701.12,699.4,0.28595939]
[1735597251408,0.26271053,701.11,699.4,0.28595939]
[1735597251609,0.54797654,701.1,699.4,0.28595939]
[1735597251808,0.5479806,701.09,699.4,0.28595939]
[1735597252003,0.54798467,701.08,699.4,0.28595939]
[1735597252204,0.54798874,701.07,699.4,0.28595939]
[1735597252510,0.26271053,701.06,699.4,0.28595939]
[1735597252811,0.26273239,701.05,699.4,0.28595939]
[1735597253010,0.54802281,701.04,699.4,0.28595939]
[1735597253209,0.54802688,701.03,699.4,0.28595939]
[1735597253406,0.28529856,701.02,699.4,0.28595939]
[1735597253606,0.26273201,701.01,699.4,0.28595939]
[1735597253811,0.2853067,701.0,699.4,0.28595939]
[1735597254006,0.26273201,700.99,699.4,0.28595939]
[1735597254211,0.54806321,700.98,699.4,0.28595939]
[1735597254415,0.26274837,700.97,699.4,0.28595939]
[1735597255909,0.26274837,700.96,699.4,0.28595939]
[1735597256113,0.28531484,700.98,699.4,0.28595939]
[1735597256616,0.26273792,700.97,699.4,0.28595939]
[1735597256915,0.26273792,700.96,699.4,0.28595939]
[1735597257110,0.28531484,700.98,699.4,0.28595939]
[1735597257111,0.26273792,700.95,699.4,0.28595939]
[1735597257313,0.26273792,700.94,699.4,0.28595939]
[1735597257612,0.26273792,700.93,699.4,0.28595939]
[1735597257813,0.26273792,700.92,699.4,0.28595939]
[1735597258010,0.26273792,700.91,699.4,0.28595939]
[1735597258213,0.26273792,700.9,699.4,0.28595939]
[1735597258415,0.26273792,700.89,699.4,0.28595939]
[1735597258615,0.26273792,700.88,699.4,0.28595939]
[1735597258815,0.26273934,700.87,699.4,0.28595939]
[1735597259114,0.26273934,700.86,699.4,0.28595939]
[1735597259308,0.26273934,700.85,699.4,0.28595939]
[1735597259511,0.28531484,700.98,699.4,0.28595939]
[1735597259512,0.26273934,700.84,699.4,0.28595939]
[1735597259713,0.26273934,700.83,699.4,0.28595939]
[1735597259909,0.26273934,700.82,699.4,0.28595939]
[1735597260114,0.26273934,700.81,699.4,0.28595939]
[1735597260411,0.26273934,700.8,699.4,0.28595939]
[1735597260616,0.26273934,700.79,699.4,0.28595939]
[1735597260815,0.26273934,700.97,699.4,0.28595939]
[1735597261115,0.26273934,700.96,699.4,0.28595939]
[1735597261314,0.26273934,700.95,699.4,0.28595939]
[1735597261615,0.26274049,700.94,699.4,0.28595939]
[1735597261814,0.26274049,700.93,699.4,0.28595939]
[1735597262009,0.26274049,700.92,699.4,0.28595939]
[1735597262213,0.26274049,700.91,699.4,0.28595939]
[1735597262413,0.26274049,700.9,699.4,0.28595939]
[1735597262615,0.26274049,700.89,699.4,0.28595939]
[1735597262814,0.26274049,700.88,699.4,0.28595939]
[1735597263010,0.26274049,700.87,699.4,0.28595939]
[1735597263316,0.26274049,700.86,699.4,0.28595939]
[1735597263517,0.26274049,700.85,699.4,0.28595939]
[1735597263718,0.26274049,700.84,699.4,0.28595939]
[1735597264015,0.26274049,700.83,699.4,0.28595939]
[1735597264212,0.26274049,700.82,699.4,0.28595939]
[1735597264414,0.26274049,700.81,699.4,0.28595939]
[1735597264615,0.26274049,700.8,699.4,0.28595939]
[1735597264815,0.26274049,700.79,699.4,0.28595939]
[1735597265017,1.49129009,700.86,699.4,0.28595939]
[1735597265018,0.26274049,700.78,699.4,0.28595939]
[1735597265217,1.49129009,700.86,699.4,0.28595939]
[1735597265218,0.26275479,700.77,699.4,0.28595939]
[1735597265419,0.26275479,700.76,699.4,0.28595939]
[1735597265617,0.26275479,700.75,699.4,0.28595939]
[1735597265818,0.26275479,700.74,699.4,0.28595939]